[Event "56th Rubinstein Memorial D 2020"]
[Site "Polanica Zdroj"]
[Date "2020.08.15"]
[Round "1.18"]
[White "Grzebieniowski, Michal"]
[Black "Lisiecki, Robert"]
[Result "1-0"]
[ECO "A52"]
[WhiteElo "1390"]
[BlackElo "1749"]
[Annotator "NA"]
[PlyCount "113"]
[EventDate "2020.08.15"]
[EventType "swiss"]
[EventCountry "POL"]
[SourceTitle "playchess.com"]
[Source "ChessBase"]
[SourceQuality "1"]
[TimeControl "40/5400+30:1800+30"]

1. d4 {[%emt 0:00:00]} Nf6 {[%emt 0:00:00]} 2. c4 {[%emt 0:00:04]} e5 {[%emt 0:00:23]} 3. dxe5 {[%emt 0:00:51]} Ng4 {[%emt 0:00:04]} 4. Nf3 {[%emt 0:00:20]} Nc6 {[%emt 0:00:07]} 5. Bf4 {[%emt 0:00:06]} Bb4+ {[%emt 0:00:09]} 6. Nc3 {[%emt 0:00:20]} Qe7 {[%emt 0:00:14]} 7. Qd5 {[%emt 0:00:10]} f6 {[%emt 0:00:47]} 8. exf6 {[%emt 0:02:05]} Nxf6 {[%emt 0:00:03]} 9. Qd3 {[%emt 0:01:43]} d6 {[%emt 0:01:17]} 10. e3 {[%emt 0:00:19]} O-O {[%emt 0:08:11]} 11. Be2 {[%emt 0:01:30]} Bxc3+ {[%emt 0:01:39]} 12. Qxc3 {[%emt 0:03:22]} Ne4 {[%emt 0:02:18]} 13. Qb3 {[%emt 0:03:17]} Nc5 {[%emt 0:08:18]} 14. Qc3 {[%emt 0:02:47]} a5 {[%emt 0:01:20]} 15. Bg5 {[%emt 0:02:25]} Qf7 {[%emt 0:01:34]} 16. O-O {[%emt 0:03:44]} Bg4 {[%emt 0:10:13]} 17. Bf4 {[%emt 0:05:37]} Bxf3 {[%emt 0:07:35]} 18. Bxf3 {[%emt 0:00:15]} Qg6 {[%emt 0:01:56]} 19. Rad1 {[%emt 0:01:56]} a4 {[%emt 0:09:13]} 20. Rd5 {[%emt 0:00:33]} Ne6 {[%emt 0:02:14]} 21. Bg3 {[%emt 0:00:17]} Ne7 {[%emt 0:12:23]} 22. Rdd1 {[%emt 0:01:20]} Rxf3 {[%emt 0:01:17]} 23. gxf3 {[%emt 0:00:07]} Ng5 {[%emt 0:00:08]} 24. e4 {[%emt 0:00:45]} Rf8 {[%emt 0:01:19]} 25. Rd3 {[%emt 0:00:15]} Qh5 {[%emt 0:01:56]} 26. f4 {[%emt 0:05:10]} Nxe4 {[%emt 0:02:49]} 27. Qd4 {[%emt 0:00:05]} Nf6 {[%emt 0:02:48]} 28. Qe3 {[%emt 0:04:24]} Nf5 {[%emt 0:01:04]} 29. Qa7 {[%emt 0:02:53]} Qg4 {[%emt 0:02:14]} 30. Qxb7 {[%emt 0:02:34]} h5 {[%emt 0:00:14]} 31. Qg2 {[%emt 0:01:24]} Qg6 {[%emt 0:03:29]} 32. h3 {[%emt 0:01:15]} Nh4 {[%emt 0:02:22]} 33. Bxh4 {[%emt 0:01:07]} Qxd3 {[%emt 0:00:09]} 34. Re1 {[%emt 0:03:25]} Qxc4 {[%emt 0:02:57]} 35. Re7 {[%emt 0:01:00]} Ne8 {[%emt 0:01:14]} 36. Qg6 {[%emt 0:00:25]} Qc1+ {[%emt 0:07:35]} 37. Kg2 {[%emt 0:00:45]} Qxf4 {[%emt 0:00:27]} 38. Bg3 {[%emt 0:00:10]} Qf3+ {[%emt 0:00:19]} 39. Kh2 {[%emt 0:00:26]} Qf6 {[%emt 0:01:03]} 40. Qe4 {[%emt 0:00:40]} Qxb2 {[%emt 0:02:13]} 41. Qe6+ {[%emt 0:31:12]} Kh7 {[%emt 0:31:51]} 42. Qe4+ {[%emt 0:00:37]} Kg8 {[%emt 0:00:20]} 43. Qd5+ {[%emt 0:01:30]} Kh8 {[%emt 0:00:58]} 44. Qxh5+ {[%emt 0:00:05]} Kg8 {[%emt 0:00:01]} 45. Rxe8 {[%emt 0:00:50]} Qxa2 {[%emt 0:00:14]} 46. Rxf8+ {[%emt 0:00:29]} Kxf8 {[%emt 0:00:04]} 47. Qf5+ {[%emt 0:00:41]} Kg8 {[%emt 0:01:17]} 48. Qc8+ {[%emt 0:00:30]} Kh7 {[%emt 0:00:02]} 49. Qxc7 {[%emt 0:00:33]} d5 {[%emt 0:00:22]} 50. Qf7 {[%emt 0:00:25]} Qb2 {[%emt 0:01:48]} 51. Qxd5 {[%emt 0:00:25]} a3 {[%emt 0:00:13]} 52. Qf5+ {[%emt 0:00:05]} Kh8 {[%emt 0:01:08]} 53. Be5 {[%emt 0:00:29]} Qb7 {[%emt 0:00:38]} 54. Qf8+ {[%emt 0:00:19]} Kh7 {[%emt 0:00:11]} 55. Qxa3 {[%emt 0:00:05]} g6 {[%emt 0:00:17]} 56. Qf8 {[%emt 0:00:21]} Qa7 {[%emt 0:00:07]} 57. Qh8# 1-0

[Event "56th Rubinstein Memorial D 2020"]
[Site "Polanica Zdroj"]
[Date "2020.08.15"]
[Round "1.19"]
[White "Bienkowski, Zbigniew"]
[Black "Tavernier, Loris"]
[Result "1-0"]
[ECO "B50"]
[WhiteElo "1739"]
[BlackElo "1390"]
[Annotator "NA"]
[PlyCount "50"]
[EventDate "2020.08.15"]
[EventType "swiss"]
[EventCountry "POL"]
[SourceTitle "playchess.com"]
[Source "ChessBase"]
[SourceQuality "1"]
[TimeControl "40/5400+30:1800+30"]

1. e4 c5 2. Nf3 {[%emt 0:00:27]} d6 {[%emt 0:00:00]} 3. h3 {[%emt 0:02:35]} Nc6 {[%emt 0:00:18]} 4. c3 {[%emt 0:00:21]} e6 {[%emt 0:00:31]} 5. d4 {[%emt 0:00:20]} cxd4 {[%emt 0:00:01]} 6. cxd4 {[%emt 0:00:25]} d5 7. exd5 {[%emt 0:03:20]} Qxd5 {[%emt 0:01:44]} 8. Nc3 {[%emt 0:00:15]} Bb4 {[%emt 0:00:02]} 9. Bd3 {[%emt 0:05:55]} Nge7 {[%emt 0:02:25]} 10. Bd2 {[%emt 0:02:22]} Qd8 {[%emt 0:00:48]} 11. O-O {[%emt 0:20:36]} Nxd4 {[%emt 0:02:22]} 12. Nxd4 Qxd4 13. Be3 {[%emt 0:09:52]} Qd8 {[%emt 0:02:12]} 14. Qc2 {[%emt 0:03:12]} Bd7 {[%emt 0:02:51]} 15. Rfd1 {[%emt 0:03:34]} Bxc3 {[%emt 0:00:29]} 16. bxc3 {[%emt 0:02:29]} a6 {[%emt 0:02:46]} 17. Bd4 {[%emt 0:02:36]} f6 {[%emt 0:13:53]} 18. Bc5 {[%emt 0:08:52]} Rc8 {[%emt 0:02:53]} 19. Ba3 {[%emt 0:07:49]} Qa5 {[%emt 0:04:20]} 20. Bb4 {[%emt 0:00:32]} Qg5 {[%emt 0:00:24]} 21. Be4 {[%emt 0:03:53]} Nc6 {[%emt 0:09:43]} 22. Qd3 {[%emt 0:03:03]} Rd8 {[%emt 0:08:08]} 23. Bxc6 {[%emt 0:01:00]} Bxc6 {[%emt 0:00:06]} 24. Qxd8+ {[%emt 0:01:01]} Kf7 {[%emt 0:00:00]} 25. Qd4 Be4 1-0

[Event "56th Rubinstein Memorial D 2020"]
[Site "Polanica Zdroj"]
[Date "2020.08.15"]
[Round "1.20"]
[White "Walkowski, Tobiasz"]
[Black "Kalkowski, Igor"]
[Result "0-1"]
[ECO "B20"]
[WhiteElo "1353"]
[BlackElo "1729"]
[Annotator "NA"]
[PlyCount "90"]
[EventDate "2020.08.15"]
[EventType "swiss"]
[EventCountry "POL"]
[SourceTitle "playchess.com"]
[Source "ChessBase"]
[SourceQuality "1"]
[TimeControl "40/5400+30:1800+30"]

1. e4 {[%emt 0:00:00]} c5 {[%emt 0:00:00]} 2. d3 {[%emt 0:00:00]} Nc6 {[%emt 0:00:00]} 3. Nd2 {[%emt 0:00:09]} g6 {[%emt 0:00:01]} 4. g3 {[%emt 0:00:26]} Bg7 {[%emt 0:00:06]} 5. Bg2 {[%emt 0:00:28]} d6 {[%emt 0:00:07]} 6. Ngf3 {[%emt 0:00:45]} e5 {[%emt 0:00:08]} 7. O-O {[%emt 0:01:01]} Nge7 {[%emt 0:00:04]} 8. Re1 {[%emt 0:01:05]} O-O {[%emt 0:00:14]} 9. Nf1 {[%emt 0:01:19]} d5 {[%emt 0:02:28]} 10. Ne3 d4 {[%emt 0:02:04]} 11. Nf1 {[%emt 0:05:04]} h6 {[%emt 0:03:00]} 12. Bd2 {[%emt 0:01:04]} Be6 {[%emt 0:00:26]} 13. h4 {[%emt 0:02:04]} Rc8 {[%emt 0:01:55]} 14. N1h2 {[%emt 0:01:52]} Qd7 {[%emt 0:04:11]} 15. Qc1 {[%emt 0:02:28]} Kh7 {[%emt 0:00:34]} 16. Kh1 {[%emt 0:04:00]} b5 {[%emt 0:03:06]} 17. Ng1 {[%emt 0:03:42]} c4 {[%emt 0:00:44]} 18. f4 {[%emt 0:01:53]} cxd3 {[%emt 0:01:00]} 19. cxd3 {[%emt 0:00:35]} Nb4 {[%emt 0:00:42]} 20. Bxb4 {[%emt 0:02:11]} Rxc1 {[%emt 0:00:25]} 21. Raxc1 {[%emt 0:00:06]} Rb8 {[%emt 0:04:12]} 22. Rc5 {[%emt 0:01:54]} Nc6 {[%emt 0:01:58]} 23. Bd2 {[%emt 0:00:09]} Bf8 {[%emt 0:00:48]} 24. Rc2 {[%emt 0:00:36]} Bxa2 {[%emt 0:01:48]} 25. Rec1 {[%emt 0:00:50]} Rb6 {[%emt 0:01:31]} 26. b4 {[%emt 0:08:29]} Bb3 {[%emt 0:03:01]} 27. Rb2 {[%emt 0:00:06]} Be6 {[%emt 0:01:57]} 28. Rbc2 {[%emt 0:00:08]} Nxb4 {[%emt 0:01:20]} 29. Rc7 {[%emt 0:00:39]} Qe8 {[%emt 0:01:30]} 30. Bxb4 {[%emt 0:01:06]} Bxb4 {[%emt 0:00:10]} 31. Rxa7 {[%emt 0:01:18]} Bc3 {[%emt 0:00:20]} 32. Ne2 {[%emt 0:00:49]} Qb8 {[%emt 0:00:13]} 33. Re7 {[%emt 0:01:08]} Bb2 {[%emt 0:05:48]} 34. Rc2 {[%emt 0:00:23]} Ba3 {[%emt 0:00:10]} 35. Rec7 {[%emt 0:00:11]} Bd6 {[%emt 0:00:07]} 36. R7c6 {[%emt 0:01:36]} Rxc6 {[%emt 0:00:33]} 37. Rxc6 {[%emt 0:00:04]} Bd7 {[%emt 0:00:12]} 38. Rc1 {[%emt 0:00:14]} b4 {[%emt 0:01:11]} 39. fxe5 {[%emt 0:00:48]} Bxe5 {[%emt 0:00:37]} 40. Nf1 {[%emt 0:00:31]} b3 {[%emt 0:00:57]} 41. Nd2 {[%emt 0:31:26]} b2 {[%emt 0:32:50]} 42. Rb1 {[%emt 0:00:15]} Be6 {[%emt 0:00:07]} 43. Nc4 {[%emt 0:02:41]} Bxc4 {[%emt 0:00:09]} 44. dxc4 {[%emt 0:00:14]} Qb3 {[%emt 0:00:06]} 45. c5 {[%emt 0:01:16]} Qc2 {[%emt 0:00:12]} 0-1

[Event "56th Rubinstein Memorial D 2020"]
[Site "Polanica Zdroj"]
[Date "2020.08.16"]
[Round "2.1"]
[White "Kalkowski, Igor"]
[Black "Kozlowski, Pawel"]
[Result "1-0"]
[ECO "A40"]
[WhiteElo "1747"]
[BlackElo "1913"]
[Annotator "ChessBase"]
[PlyCount "129"]
[EventDate "2020.08.15"]
[EventType "swiss"]
[EventCountry "POL"]
[SourceTitle "playchess.com"]
[Source "ChessBase"]
[SourceQuality "1"]
[TimeControl "40/5400+30:1800+30"]

1. d4 {[%emt 0:00:00]} e6 {[%emt 0:00:07]} 2. c4 {[%emt 0:00:00]} f5 {[%emt 0:00:06]} 3. Nf3 {[%emt 0:00:02]} Nf6 {[%emt 0:00:10]} 4. Nc3 {[%emt 0:00:06]} Bb4 {[%emt 0:00:05]} 5. Bf4 {[%emt 0:12:42]} O-O {[%emt 0:01:33]} 6. e3 {[%emt 0:00:39]} b6 {[%emt 0:02:55]} 7. Bd3 {[%emt 0:00:47]} Bb7 {[%emt 0:00:24]} 8. Qc2 {[%emt 0:00:39]} d6 {[%emt 0:00:37]} 9. Rg1 {[%emt 0:10:31]} Nbd7 {[%emt 0:08:15]} 10. O-O-O {[%emt 0:03:56]} Bxc3 {[%emt 0:02:05]} 11. bxc3 {[%emt 0:06:08]} Qe7 {[%emt 0:02:25]} 12. Nd2 {[%emt 0:04:04]} e5 {[%emt 0:10:02]} 13. Bg5 {[%emt 0:00:24]} e4 {[%emt 0:00:14]} 14. Be2 {[%emt 0:00:23]} h6 {[%emt 0:01:58]} 15. Bf4 {[%emt 0:14:01]} g5 {[%emt 0:26:13]} 16. Bg3 {[%emt 0:00:13]} Ne8 {[%emt 0:00:10]} 17. h4 {[%emt 0:02:37]} g4 {[%emt 0:03:55]} 18. Bf4 {[%emt 0:04:11]} h5 {[%emt 0:05:28]} 19. f3 {[%emt 0:03:02]} Ng7 {[%emt 0:01:42]} 20. Bg5 {[%emt 0:03:37]} Qe8 {[%emt 0:04:02]} 21. f4 {[%emt 0:15:44]} a6 {[%emt 0:03:57]} 22. Nf1 {[%emt 0:05:40]} Qf7 {[%emt 0:02:05]} 23. Qb3 {[%emt 0:01:52]} Kh7 {[%emt 0:02:01]} 24. Kd2 {[%emt 0:01:54]} Kg6 {[%emt 0:03:01]} 25. g3 {[%emt 0:03:36]} Nb8 {[%emt 0:02:48]} 26. Ke1 {[%emt 0:00:43]} Nc6 {[%emt 0:00:05]} 27. Kf2 {[%emt 0:00:29]} Rfb8 {[%emt 0:03:53]} 28. Nd2 {[%emt 0:00:45]} Bc8 {[%emt 0:00:48]} 29. Qa3 {[%emt 0:01:36]} b5 {[%emt 0:06:07]} 30. Rb1 {[%emt 0:00:32]} Ne7 {[%emt 0:01:14]} 31. Nb3 {[%emt 0:01:41]} Ne6 {[%emt 0:01:53]} 32. d5 {[%emt 0:01:45]} Nxg5 {[%emt 0:00:48]} 33. hxg5 {[%emt 0:00:29]} bxc4 {[%emt 0:00:16]} 34. Bxc4 {[%emt 0:00:37]} Bb7 {[%emt 0:00:17]} 35. Nd4 {[%emt 0:01:19]} Bxd5 {[%emt 0:00:35]} 36. Rxb8 {[%emt 0:00:24]} Rxb8 {[%emt 0:00:09]} 37. Bxa6 {[%emt 0:00:04]} Bxa2 {[%emt 0:01:04]} 38. Nb5 {[%emt 0:00:44]} c5 {[%emt 0:03:36]} 39. Nxd6 {[%emt 0:00:34]} Qd5 {[%emt 0:00:06]} 40. Be2 {[%emt 0:00:44]} Ra8 {[%emt 0:00:09]} 41. c4 {[%emt 0:30:43]} Qc6 {[%emt 0:30:40]} 42. Qc3 {[%emt 0:00:06]} Qxd6 {[%emt 0:00:41]} 43. Rd1 {[%emt 0:00:04]} Qe6 {[%emt 0:00:30]} 44. Rd2 {[%emt 0:00:04]} Bb1 {[%emt 0:01:59]} 45. Rb2 {[%emt 0:00:13]} Bd3 {[%emt 0:00:11]} 46. Bxd3 {[%emt 0:00:06]} exd3 {[%emt 0:00:01]} 47. Qxd3 {[%emt 0:00:10]} Ra6 {[%emt 0:00:40]} 48. Qd8 {[%emt 0:00:32]} Rd6 {[%emt 0:01:25]} 49. Qe8+ {[%emt 0:02:05]} Qf7 {[%emt 0:00:11]} 50. Qh8 {[%emt 0:00:27]} Qg7 {[%emt 0:00:13]} 51. Qe8+ {[%emt 0:00:10]} Qf7 {[%emt 0:00:54]} 52. Qh8 {[%emt 0:00:12]} Qg7 {[%emt 0:00:43]} 53. Qe8+ {[%emt 0:00:08]} Qf7 {[%emt 0:00:20]} 54. Qh8 {[%emt 0:00:20]} Qxc4 {[%emt 0:00:13]} 55. Qh6+ {[%emt 0:00:09]} Kf7 {[%emt 0:00:19]} 56. Qxd6 {[%emt 0:00:17]} Qc3 {[%emt 0:01:10]} 57. Ra2 {[%emt 0:00:24]} h4 {[%emt 0:00:23]} 58. gxh4 {[%emt 0:00:52]} g3+ {[%emt 0:00:24]} 59. Kg2 {[%emt 0:00:21]} Qc4 {[%emt 0:00:31]} 60. Qf6+ {[%emt 0:00:09]} Ke8 {[%emt 0:00:42]} 61. Ra8+ {[%emt 0:00:33]} Kd7 {[%emt 0:00:26]} 62. Ra7+ {[%emt 0:00:12]} Kc8 {[%emt 0:00:10]} 63. Qh8+ {[%emt 0:00:23]} Ng8 {[%emt 0:00:06]} 64. Qxg8+ {[%emt 0:00:08]} Qxg8 {[%emt 0:00:11]} 65. Ra8+ {[%emt 0:00:04]} 1-0

[Event "56th Rubinstein Memorial D 2020"]
[Site "Polanica Zdroj"]
[Date "2020.08.16"]
[Round "2.2"]
[White "Szydelko, Kazimierz"]
[Black "Szydelko, Michal"]
[Result "0-1"]
[ECO "B80"]
[WhiteElo "1713"]
[BlackElo "1910"]
[Annotator "ChessBase"]
[PlyCount "100"]
[EventDate "2020.08.15"]
[EventType "swiss"]
[EventCountry "POL"]
[SourceTitle "playchess.com"]
[Source "ChessBase"]
[SourceQuality "1"]
[TimeControl "40/5400+30:1800+30"]

1. e4 {[%emt 0:00:07]} c5 {[%emt 0:00:30]} 2. Nf3 {[%emt 0:00:28]} d6 {[%emt 0:00:12]} 3. d4 {[%emt 0:00:37]} cxd4 {[%emt 0:00:07]} 4. Nxd4 {[%emt 0:00:25]} Nf6 {[%emt 0:00:08]} 5. Nc3 {[%emt 0:00:34]} e6 {[%emt 0:01:35]} 6. Be3 {[%emt 0:22:50]} Be7 {[%emt 0:00:14]} 7. Be2 {[%emt 0:00:23]} a6 {[%emt 0:00:21]} 8. O-O {[%emt 0:00:46]} O-O {[%emt 0:00:07]} 9. a3 {[%emt 0:01:31]} Qc7 {[%emt 0:00:16]} 10. Kh1 {[%emt 0:00:54]} b5 {[%emt 0:01:07]} 11. f4 {[%emt 0:01:13]} Bb7 {[%emt 0:00:42]} 12. Bf3 {[%emt 0:00:19]} Nbd7 {[%emt 0:00:14]} 13. Nb3 {[%emt 0:02:47]} Rfd8 {[%emt 0:01:26]} 14. Qe2 {[%emt 0:01:02]} Nc5 {[%emt 0:00:42]} 15. Nxc5 {[%emt 0:00:22]} dxc5 {[%emt 0:00:07]} 16. Bg1 {[%emt 0:00:52]} Rac8 {[%emt 0:01:52]} 17. e5 {[%emt 0:04:16]} Nd5 {[%emt 0:01:37]} 18. Nxd5 {[%emt 0:00:30]} Bxd5 {[%emt 0:00:09]} 19. Bxd5 {[%emt 0:00:24]} Rxd5 {[%emt 0:00:07]} 20. Rad1 {[%emt 0:02:01]} Rcd8 {[%emt 0:00:27]} 21. Rxd5 {[%emt 0:03:57]} Rxd5 {[%emt 0:00:10]} 22. Be3 {[%emt 0:12:58]} c4 {[%emt 0:05:02]} 23. Ra1 {[%emt 0:15:00]} Bc5 {[%emt 0:09:26]} 24. h3 {[%emt 0:11:07]} Qb6 {[%emt 0:03:48]} 25. Re1 {[%emt 0:07:25]} Bxe3 {[%emt 0:06:28]} 26. Qxe3 {[%emt 0:00:09]} Qxe3 {[%emt 0:00:17]} 27. Rxe3 {[%emt 0:00:09]} Rd2 {[%emt 0:00:10]} 28. Rc3 {[%emt 0:00:24]} Rf2 {[%emt 0:00:52]} 29. g3 {[%emt 0:00:27]} Kf8 {[%emt 0:00:09]} 30. Kg1 {[%emt 0:00:42]} Rd2 {[%emt 0:00:11]} 31. a4 {[%emt 0:02:03]} Ke7 {[%emt 0:09:12]} 32. Kf1 {[%emt 0:04:52]} Kd7 {[%emt 0:00:21]} 33. Ke1 {[%emt 0:00:39]} Rh2 {[%emt 0:00:23]} 34. h4 {[%emt 0:00:57]} Kc6 {[%emt 0:00:23]} 35. Kd1 {[%emt 0:01:44]} Kc5 {[%emt 0:00:31]} 36. axb5 {[%emt 0:00:18]} axb5 {[%emt 0:00:08]} 37. b3 {[%emt 0:01:59]} Kd4 {[%emt 0:04:43]} 38. Rf3 {[%emt 0:00:10]} Rh1+ {[%emt 0:06:52]} 39. Ke2 {[%emt 0:00:40]} Rh2+ {[%emt 0:00:33]} 40. Kd1 {[%emt 0:00:28]} f6 {[%emt 0:02:24]} 41. exf6 {[%emt 0:30:45]} gxf6 {[%emt 0:30:02]} 42. bxc4 {[%emt 0:01:11]} bxc4 {[%emt 0:00:11]} 43. Ra3 {[%emt 0:00:21]} e5 {[%emt 0:00:56]} 44. Ra6 {[%emt 0:00:42]} Ke3 {[%emt 0:04:16]} 45. Ra3+ {[%emt 0:00:23]} Kf2 {[%emt 0:00:22]} 46. fxe5 {[%emt 0:00:34]} fxe5 {[%emt 0:00:05]} 47. Rc3 {[%emt 0:00:27]} e4 {[%emt 0:00:49]} 48. Rxc4 {[%emt 0:00:28]} Rh1+ {[%emt 0:00:43]} 49. Kd2 {[%emt 0:00:17]} e3+ {[%emt 0:00:05]} 50. Kd3 {[%emt 0:00:50]} Rd1+ {[%emt 0:00:28]} 0-1

[Event "56th Rubinstein Memorial D 2020"]
[Site "Polanica Zdroj"]
[Date "2020.08.16"]
[Round "2.3"]
[White "Szczygiel, Konrad"]
[Black "Grzelak, Piotr"]
[Result "1-0"]
[ECO "D37"]
[WhiteElo "1901"]
[BlackElo "1664"]
[Annotator "ChessBase"]
[PlyCount "121"]
[EventDate "2020.08.15"]
[EventType "swiss"]
[EventCountry "POL"]
[SourceTitle "playchess.com"]
[Source "ChessBase"]
[SourceQuality "1"]
[TimeControl "40/5400+30:1800+30"]

1. d4 {[%emt 0:00:00]} e6 {[%emt 0:06:46]} 2. c4 {[%emt 0:00:00]} d5 {[%emt 0:00:11]} 3. Nc3 {[%emt 0:00:00]} Nf6 {[%emt 0:00:16]} 4. Nf3 {[%emt 0:00:20]} Nbd7 {[%emt 0:01:27]} 5. e3 {[%emt 0:01:37]} Be7 {[%emt 0:02:35]} 6. Bd3 {[%emt 0:00:26]} O-O {[%emt 0:03:45]} 7. O-O {[%emt 0:06:22]} dxc4 {[%emt 0:02:07]} 8. Bxc4 {[%emt 0:00:07]} b6 {[%emt 0:01:43]} 9. e4 {[%emt 0:02:19]} Bb7 {[%emt 0:01:37]} 10. e5 {[%emt 0:01:18]} Nd5 {[%emt 0:02:08]} 11. Nxd5 {[%emt 0:05:18]} Bxd5 {[%emt 0:00:17]} 12. Bxd5 {[%emt 0:00:52]} exd5 {[%emt 0:00:09]} 13. Qe2 {[%emt 0:01:11]} Kh8 {[%emt 0:07:08]} 14. Bf4 {[%emt 0:07:34]} c5 {[%emt 0:02:15]} 15. Rfd1 {[%emt 0:01:40]} c4 {[%emt 0:04:43]} 16. Rac1 {[%emt 0:04:08]} Re8 {[%emt 0:05:51]} 17. Rc3 {[%emt 0:06:37]} Nf8 {[%emt 0:03:16]} 18. Ne1 {[%emt 0:05:11]} Ne6 {[%emt 0:02:08]} 19. Qg4 {[%emt 0:04:16]} Bg5 {[%emt 0:12:11]} 20. Bxg5 {[%emt 0:03:59]} Qxg5 {[%emt 0:00:18]} 21. Qxg5 {[%emt 0:01:51]} Nxg5 {[%emt 0:00:08]} 22. Nc2 {[%emt 0:00:16]} b5 {[%emt 0:14:44]} 23. Nb4 {[%emt 0:06:52]} Rad8 {[%emt 0:07:01]} 24. Ra3 {[%emt 0:11:49]} Rd7 {[%emt 0:00:53]} 25. Nc6 {[%emt 0:04:22]} Ne6 {[%emt 0:03:02]} 26. Ra5 {[%emt 0:03:57]} Rc8 {[%emt 0:02:25]} 27. Rxa7 {[%emt 0:03:03]} Rxa7 {[%emt 0:00:37]} 28. Nxa7 {[%emt 0:00:04]} Ra8 {[%emt 0:00:35]} 29. Nxb5 {[%emt 0:00:31]} Rxa2 {[%emt 0:00:26]} 30. Nc3 {[%emt 0:00:46]} Rxb2 {[%emt 0:00:26]} 31. Nxd5 {[%emt 0:00:15]} Nxd4 {[%emt 0:00:55]} 32. Ne3 {[%emt 0:00:20]} Ne6 {[%emt 0:01:45]} 33. Nxc4 {[%emt 0:00:27]} Rb7 {[%emt 0:01:10]} 34. f4 {[%emt 0:00:56]} g6 {[%emt 0:02:34]} 35. g3 {[%emt 0:00:48]} Kg7 {[%emt 0:02:03]} 36. Rd2 {[%emt 0:01:11]} h6 {[%emt 0:01:03]} 37. Nd6 {[%emt 0:00:26]} Ra7 {[%emt 0:01:07]} 38. Rb2 {[%emt 0:00:40]} h5 {[%emt 0:04:10]} 39. Kg2 {[%emt 0:03:11]} Kh6 {[%emt 0:01:21]} 40. Rb7 {[%emt 0:00:46]} Rxb7 {[%emt 0:00:46]} 41. Nxb7 {[%emt 0:30:05]} h4 {[%emt 0:31:16]} 42. Nd6 {[%emt 0:00:50]} hxg3 {[%emt 0:00:49]} 43. hxg3 {[%emt 0:00:20]} Kg7 {[%emt 0:00:11]} 44. Kf3 {[%emt 0:00:51]} f5 {[%emt 0:00:17]} 45. Ke3 {[%emt 0:01:28]} Kh6 {[%emt 0:00:38]} 46. Nb5 {[%emt 0:00:41]} Kh5 {[%emt 0:00:53]} 47. Nd4 {[%emt 0:00:27]} Nc7 {[%emt 0:00:28]} 48. Kf3 {[%emt 0:00:30]} Nd5 {[%emt 0:00:24]} 49. Ne6 {[%emt 0:02:52]} Ne7 {[%emt 0:00:50]} 50. Ng5 {[%emt 0:00:42]} Nd5 {[%emt 0:00:34]} 51. Nh7 {[%emt 0:00:15]} Kh6 {[%emt 0:00:23]} 52. Nf6 {[%emt 0:00:11]} Ne7 {[%emt 0:00:25]} 53. Ke3 {[%emt 0:00:12]} g5 {[%emt 0:00:21]} 54. Kd4 {[%emt 0:00:22]} gxf4 {[%emt 0:00:28]} 55. gxf4 {[%emt 0:00:05]} Kg7 {[%emt 0:00:45]} 56. Nd5 {[%emt 0:01:14]} Ng6 {[%emt 0:00:42]} 57. Kc5 {[%emt 0:00:09]} Kf7 {[%emt 0:00:28]} 58. Kd6 {[%emt 0:00:12]} Nf8 {[%emt 0:00:26]} 59. Nc7 {[%emt 0:00:16]} Ng6 {[%emt 0:00:23]} 60. e6+ {[%emt 0:00:23]} Kf6 {[%emt 0:00:44]} 61. Nd5+ {[%emt 0:00:14]} 1-0

[Event "56th Rubinstein Memorial D 2020"]
[Site "Polanica Zdroj"]
[Date "2020.08.16"]
[Round "2.4"]
[White "Jurkiewicz, Joanna"]
[Black "Darowicki, Mariusz"]
[Result "0-1"]
[ECO "B40"]
[WhiteElo "1691"]
[BlackElo "1950"]
[Annotator "ChessBase"]
[PlyCount "90"]
[EventDate "2020.08.15"]
[EventType "swiss"]
[EventCountry "POL"]
[SourceTitle "playchess.com"]
[Source "ChessBase"]
[SourceQuality "1"]
[TimeControl "40/5400+30:1800+30"]

1. e4 {[%emt 0:00:00]} c5 {[%emt 0:00:00]} 2. Nf3 {[%emt 0:00:00]} e6 {[%emt 0:00:00]} 3. d4 {[%emt 0:00:00]} cxd4 {[%emt 0:00:00]} 4. Nxd4 {[%emt 0:00:00]} Nf6 {[%emt 0:00:04]} 5. Nc3 {[%emt 0:00:00]} Nc6 {[%emt 0:00:09]} 6. Be2 {[%emt 0:00:36]} Be7 {[%emt 0:01:04]} 7. Be3 {[%emt 0:01:17]} O-O {[%emt 0:01:09]} 8. O-O {[%emt 0:00:54]} a6 {[%emt 0:04:23]} 9. a4 {[%emt 0:00:35]} Qa5 {[%emt 0:03:48]} 10. Nb3 {[%emt 0:14:31]} Qc7 {[%emt 0:01:23]} 11. a5 {[%emt 0:03:15]} d5 {[%emt 0:16:32]} 12. Bb6 {[%emt 0:06:21]} Qd7 {[%emt 0:06:26]} 13. exd5 {[%emt 0:08:16]} Nxd5 {[%emt 0:04:04]} 14. Nxd5 {[%emt 0:03:34]} exd5 {[%emt 0:00:10]} 15. Bf3 {[%emt 0:02:26]} Qf5 {[%emt 0:03:13]} 16. c3 {[%emt 0:09:15]} Be6 {[%emt 0:00:53]} 17. Nc5 {[%emt 0:03:48]} Bxc5 {[%emt 0:02:15]} 18. Bxc5 {[%emt 0:00:02]} Rfd8 {[%emt 0:00:12]} 19. Bd4 {[%emt 0:06:56]} Rac8 {[%emt 0:01:43]} 20. Ra4 {[%emt 0:05:11]} h6 {[%emt 0:04:27]} 21. Bb6 {[%emt 0:04:45]} Rd7 {[%emt 0:00:43]} 22. Qd2 {[%emt 0:04:24]} Ne5 {[%emt 0:03:55]} 23. Rf4 {[%emt 0:06:54]} Nc4 {[%emt 0:04:24]} 24. Qc1 {[%emt 0:03:14]} Qg6 {[%emt 0:00:41]} 25. b3 {[%emt 0:06:16]} Nxb6 {[%emt 0:00:21]} 26. axb6 {[%emt 0:00:01]} Qd3 {[%emt 0:01:51]} 27. Bd1 {[%emt 0:07:59]} Rxc3 {[%emt 0:02:15]} 28. Qb2 {[%emt 0:00:03]} Rc8 {[%emt 0:02:52]} 29. Rf3 {[%emt 0:00:26]} Qe4 {[%emt 0:02:46]} 30. Rg3 {[%emt 0:00:23]} d4 {[%emt 0:00:58]} 31. Qd2 {[%emt 0:00:26]} Qh4 {[%emt 0:05:28]} 32. Bc2 {[%emt 0:00:21]} Rc5 {[%emt 0:02:59]} 33. Re1 {[%emt 0:00:10]} Rg5 {[%emt 0:04:18]} 34. Rh3 {[%emt 0:01:13]} Rxg2+ {[%emt 0:00:22]} 35. Kxg2 {[%emt 0:00:33]} Qxh3+ {[%emt 0:00:05]} 36. Kh1 {[%emt 0:00:04]} Qf3+ {[%emt 0:00:17]} 37. Kg1 {[%emt 0:00:22]} d3 {[%emt 0:00:43]} 38. Bd1 {[%emt 0:00:27]} Qf6 {[%emt 0:00:35]} 39. Re3 {[%emt 0:03:13]} Qg5+ {[%emt 0:00:22]} 40. Kh1 {[%emt 0:00:01]} g6 {[%emt 0:02:04]} 41. Bf3 {[%emt 0:30:42]} Kg7 {[%emt 0:30:57]} 42. Qc3+ {[%emt 0:00:08]} Qf6 {[%emt 0:00:05]} 43. Qd2 {[%emt 0:00:25]} Bf5 {[%emt 0:02:05]} 44. Re8 {[%emt 0:00:53]} Be6 {[%emt 0:01:24]} 45. Qb4 {[%emt 0:00:29]} Qxf3+ {[%emt 0:00:16]} 0-1